{"text_format":"3","workbook":"xlsx","n_sheets":2,"sheets":["Cover PageFLASH DRIVE BQ CL 104","STORM14-MOWBRAY"],"not_rendered":{"images":1,"external_links":1,"defined_names":2,"comments":1},"read":"whole","date_system":"1900"}

{"sheet":"Cover PageFLASH DRIVE BQ CL 104","index":0,"n_rows":46,"n_cols":4,"rows_kept":46,"merged":[[0,0,0,3],[1,0,1,3],[8,0,8,3],[9,0,9,3],[11,0,11,3],[13,0,13,3],[14,0,14,3],[15,0,15,3],[18,0,18,3],[19,0,19,3],[20,0,20,1],[20,2,20,3],[21,0,21,1],[21,2,21,3],[22,0,22,1],[22,2,22,3],[23,0,23,1],[23,2,23,3],[24,0,24,1],[24,2,24,3],[25,0,25,1],[26,0,26,1],[26,2,26,3],[27,0,27,1],[27,2,27,3],[28,0,28,1],[28,2,28,3],[30,2,30,3],[31,2,31,3],[32,2,32,3],[33,2,33,3],[34,2,34,3],[35,2,35,3],[43,1,43,3],[44,1,44,3],[45,2,45,3]]}
["PROVINCIAL ADMINISTRATION OF KWAZULU-NATAL"]
["DEPARTMENT OF PUBLIC WORKS"]
[{"$nulls":3}," "]
[]
[]
[]
[]
[]
[]
["BILLS OF QUANTITIES"]
[]
["with GCC for Construction Works - Second Edition 2010"]
[]
["RETURNABLE DOCUMENT"]
["FLASH DRIVE"]
["PHASE 14: STORM DAMAGED PROGRAMME: REPAIRS AND RENOVATIONS TO STORM DAMAGED SCHOOLS THROUGHOUT THE PROVINCE OF KWAZULU-NATAL: MIDLANDS REGION: CLUSTER 104: MOWBRAY PRIMARY SCHOOL. OPEN BIDS."]
["SCHOOL NAME","WIMS NO.","CONTRACT PERIOD","TYPE OF CONTRACT"]
["MOWBRAY PRIMARY SCHOOL","063877","8 CALENDAR MONTHS","OPEN TENDER"]
[]
[]
["Engineer/Principal Agent",null,"Principal Agent/Programme Manager"]
["VNA Consulting (Pty) Ltd        ",null,"VNA Consulting (Pty) Ltd        "]
["P.O Box 70803",null,"P.O Box 70803"]
["Overport",null,"Durban"]
["Durban",null,4067]
[4067]
["031 -700 2500 - Tel Number",null,"031 - 700 2500 - Tel Number"]
["031 - 940 4243 - Fax Number",null,"031 - 940 4243 - Fax Number"]
["anisa.vaid@vnac.co.za",null,"anisa.vaid@vnac.co.za"]
[]
["Employer:",null,"Region:"]
["Head: Public Works",null,"Head Public Works: Operations"]
["KZN Department of Public Works",null,"KZN Department of Public Works"]
["Private Bag X 9041",null,"X9041"]
["Pietermaritzburg",null,"Pietermaritzburg"]
[3200,null,"3200"]
["Tel Number:     033 - 355 5569",null,"Tel Number:","033 - 355 5569"]
["Fax Number:    N/A",null,"Fax Number:","N/A"]
[]
["Bid Number:           ZNTL04772W",null,"Project Code:","063877"]
["CIDB Grading         4GB or higher",null,"Document Date:","As per Tender Advert"]
["ECDP Number:        N/A",null,"Contract Period:",{"$f":"C18","v":"8 CALENDAR MONTHS"}]
[]
["Bidding Entity: "]
["CIDB Registration number:"]
["Central Suppliers Database Registration Number: "]

{"sheet":"STORM14-MOWBRAY","index":1,"n_rows":1280,"n_cols":6,"rows_kept":1280,"merged":[[0,0,0,5],[1,0,1,1],[1,3,1,4],[2,0,2,1],[2,3,2,4],[3,0,3,1],[3,2,3,5],[4,0,4,5],[1243,1,1243,4],[1249,1,1249,4]]}
[{"$f":"'Cover PageFLASH DRIVE BQ CL 104'!A16:D16","v":"PHASE 14: STORM DAMAGED PROGRAMME: REPAIRS AND RENOVATIONS TO STORM DAMAGED SCHOOLS THROUGHOUT THE PROVINCE OF KWAZULU-NATAL: MIDLANDS REGION: CLUSTER 104: MOWBRAY PRIMARY SCHOOL. OPEN BIDS."}]
["SCHOOL NAME",null,"WIMS NO.","CONTRACT PERIOD",null,"TYPE OF CONTRACT"]
[{"$f":"'Cover PageFLASH DRIVE BQ CL 104'!A18","v":"MOWBRAY PRIMARY SCHOOL"},null,{"$f":"'Cover PageFLASH DRIVE BQ CL 104'!B18","v":"063877"},{"$f":"'Cover PageFLASH DRIVE BQ CL 104'!C18","v":"8 CALENDAR MONTHS"},null,{"$f":"'Cover PageFLASH DRIVE BQ CL 104'!D18","v":"OPEN TENDER"}]
[{"$f":"'[1]Cover PageFLASH DRIVE BQ CL 127'!A44","v":"Bidding Entity: "},null,{"$f":"'Cover PageFLASH DRIVE BQ CL 104'!B44","v":0}]
["BIDDERS TO NOTE THAT ALL FIELDS HIGHLIGTHED IN YELLOW TO BE FILLED IN ONLY"]
["ITEM     NO","DESCRIPTION","UNIT","QUANTITY","RATE","AMOUNT"]
[]
[null,"SECTION 1"]
[null,"BILL NO. 1 PRELIMINARIES AND GENERAL (PROVISIONAL)"]
[]
[null,"See C2.2 - Preliminaries for GCC for Construction works - 2nd Edition (2010)"]
[]
[1,"Preliminaries","Item",1,null,{"$f":"D13*E13","v":0}]
[]
[null,"Total for Section No. 1: Bill No. 1",{"$nulls":3},{"$f":"SUM(F13:F14)","v":0}]
[]
[null,"SECTION 2"]
[null,"BILL NO.1 : ALTERATIONS (PROVISIONAL)"]
[]
[null,"(CPAP WORK GROUP 102 UNLESS OTHERWISE STATED)"]
[]
[null,"SUPPLEMENTARY PREAMBLES"]
[]
[null,"The Tenderer is referred to the relevant Clauses in the Standard Preambles to All Trades and to the Supplementary Preambles which are incorporated in these Bills of Quantities."]
[]
[null,"For Preambles refer to the relevant Clauses in the ASAQS Model Preambles for Trades 2008 and Supplementary Preambles which is incorporated in these Bills of Quantities."]
[]
[null,"NOTE:"]
[]
[null,"Rates are to include  for removal of all items unless otherwise described."]
[]
[null,"Block Notation"]
[]
[null,"Note: For the purpose of tendering only the total quantity shall be used in calculating the amount for inclusion in the tender at the tendered rates.\nBlock A : Admin Block and Classrooms\nBlock B : Church Hall\nBlock C : 3 Classroom\nBlock X - External Works\nY - General"]
[]
[null,"View site:"]
[]
[null,"Before submitting his tender the contractor shall visit the site and satisfy himself as to the nature and extent of the work to be done and the value of the materials contained in the buildings or portions of the buildings to be demolished.  No claim for any variations of the contract sum in respect of the nature and extent of the work or of inferior or damaged materials will be entertained."]
[]
[null,"Work and materials:"]
[]
[null,"The work to be done and the materials to be used in the works on site are to be similar to those specified in the new work so as they apply."]
[]
[null,"Old materials:"]
[]
[null,"Old materials specified to be handed over are to be carefully made good and stored on the site where directed."]
[]
[null,"Old materials to be carted away:"]
[]
[null,"Old materials from alterations except where described to be re-used or handed over, as well as rubbish, etc. must be regularly carted from the site and not be allowed to accumulate on or around the site."]
[]
[null,"Demolitions:"]
[]
[null,"The items shall be reserved and remain the property of the employer and will be removed from the building by the contractor and handed over to the employer prior to the commencement of the demolitions. Should the tenderer have doubts concerning any of these items he shall seek clarification from the Principal Agent."]
[]
[null,"Leave site clean and free of rubbish:"]
[]
[null,"The contractor shall progressively during the works and at completion collect and cart away all materials and debris resulting from the demolitions and also all earth, soil and rubbish."]
[]
[null,"General:"]
[]
[null,"The contractor shall carry out the whole of the works with as little mess and noise as possible and with a minimum of disturbance to adjoining premises and their tenants. He shall provide proper protection and provide, erect and remove when directed, any temporary tarpaulins that may be necessary during the progress of the works, all to the satisfaction of the principal agent."]
[]
[null,"Water supply pipes and other piping that may be encountered and found necessary to disconnect or cut, shall be effectually stopped off or grubbed up and removed, and any new connections that may be necessary shall be made with proper fittings, to the satisfaction of the principal agent."]
[]
[null,"Doors, fanlights, fittings, frames, linings, etc which are to be re-used shall be thoroughly overhauled before refixing including taking off, easing and rehanging, cramping up, re-wedging as required and making good cramps, dowels, etc, and easing, oiling, adjusting and repairing ironmongery as necessary, replacing any glass damaged in removal or subsequently and stopping up all nail and screw holes with tinted plastic wood to match timber, unless otherwise described. Re-painting or re-varnishing is given separately."]
[]
[null,"Prices for taking out of doors, windows, etc shall include for removal of all beads, architraves, ironmongery, etc."]
[]
[null,"Prices for taking out and removing doors and frames shall include for removing door stops, cabin hooks, etc and making good floor and wall finishes to match existing."]
[]
[null,"With regard to building up of openings in existing walls, cement screeds and pavings, granolithic, tops of walls, etc, shall be levelled and prepared for raising of brickwork."]
[]
[null,"Making good of finishes shall include making good of the brick and concrete surfaces onto which the new finishes are applied, where necessary."]
[]
[null,"The contractor will be held responsible for any damage to persons and property and for the safety of the structures and he is to allow for protecting and indemnifying persons using the existing buildings from injury by virtue of the building operations, including providing necessary barriers, signs, etc."]
[]
[null,"The contractor will be required to take all dimensions affecting the existing buildings on the site and he will be held solely responsible for the accuracy of all such dimensions where used in the manufacture of new items (doors, windows, fittings, etc)."]
[]
[null,"Rates are deemed to include cart away and/or disposal at an approved dump site."]
[]
[null,"HOARDING"]
[]
[null,"Hoarding, Roofing protection, etc.:"]
[]
[1,"Shade cloth hoarding 1.8m high above natural ground level, including 300mm x 300mm x 300mm deep base, including 15Mpa/19mm mass concrete bases, excavation, backfilling etc, fixed to intermediate timber posts at 3m centres.","m",68,null,{"$f":"D86*E86","v":0}]
[]
[null,"REMOVAL OF EXISTING WORK"]
[]
[null,"Demolish existing reinforced concrete including temporary propping, etc.:"]
[]
[2,"2450 x 2450 x 1000mm deep water tank stand. ","No",3,null,{"$f":"D92*E92","v":0}]
[]
[null,"Demolish existing unreinforced concrete, etc.:"]
[]
[3,"Concrete steps. ","m2",3,null,{"$f":"D96*E96","v":0}]
[]
[4,"One blockwork.","m2",147,null,{"$f":"D98*E98","v":0}]
[]
[null,"Taking down and removing roofs, floors, panelling, ceilings, partitions, etc.:"]
[]
[5,"Timber trusses and existing fittings.","No",23,null,{"$f":"D102*E102","v":0}]
[]
[6,"Timber rafters including existing fittings.","m",82,null,{"$f":"D104*E104","v":0}]
[]
[7,"Corrugated metal roof sheeting including ridge capping, purlins, battens, poly closers, underlay, etc.","m2",783,null,{"$f":"D106*E106","v":0}]
[]
[8,"Fibre-cement ceilings including cornices, timber brandering, etc.","m2",210,null,{"$f":"D108*E108","v":0}]
[]
[9,"Existing chalk boards.","No",6,null,{"$f":"D110*E110","v":0}]
[]
[10,"Fibre cement fascia boards including all fittings.","m",176,null,{"$f":"D112*E112","v":0}]
[]
[11,"Fibre cement barge boards including all fittings.","m",64,null,{"$f":"D114*E114","v":0}]
[]
[12,"Gutters including fittings.","m",175,null,{"$f":"D116*E116","v":0}]
[]
[13,"Downpipes including fittings.","m",50,null,{"$f":"D118*E118","v":0}]
[]
[14,"Water storage tank including all fittings. ","No",3,null,{"$f":"D120*E120","v":0}]
[]
[15,"Steel plinth.","No",1,null,{"$f":"D122*E122","v":0}]
[]
[null,"Taking out and removing timber doors, etc.:"]
[]
[16,"Timber single door and steel frame 813 x 2032mm high overall from one brick wall.","No",8,null,{"$f":"D126*E126","v":0}]
[]
[null,"Taking out and removing door from existing frame:"]
[]
[17,"Timber single door.","No",3,null,{"$f":"D130*E130","v":0}]
[]
[18,"GMS gates:","No ",4,null,{"$f":"D132*E132","v":0}]
[]
[null,"Taking out/off and removing glass and mirrors:"]
[]
[19,"Glass from steel windows, including cleaning out rebates and preparing for new glass (new glass elsewhere measured).","m2",5,null,{"$f":"D136*E136","v":0}]
[]
[null,"Take out and remove existing glazed steel window frame etc.:"]
[]
[20,"Glazed steel window frame  size 889 x 1248mm high from one brick wall.","No",29,null,{"$f":"D140*E140","v":0}]
[]
[21,"Glazed steel window frame size 889 x 457mm high from one brick wall.","No",16,null,{"$f":"D142*E142","v":0}]
[]
[null,"Taking out and removing brickwork:"]
[]
[22,"One block wall in beamfilling.","m2",25,null,{"$f":"D146*E146","v":0}]
[]
[null,"Structural Repairs:"]
[]
[null,"Brick/Block stitching."]
[]
[23,"Hack off existing plaster, a minimum of 400mm of both sides of the crack. Cut into existing mortar lines, 400mm on both sides of the crack. Place one Y8MM diameter bar, 800mm long, centred on the crack and caulk in with fresh mortar in every course to the full extent of the crack. Finish off by plastering and painting.","m",24,null,{"$f":"D152*E152","v":0}]
[]
[null,"Hacking up/off and removing granolithic, screeds, plaster etc. from concrete or brickwork and preparing surfaces for new screeds, plaster, etc. "]
[]
[24,"Plaster from walls in patches.","m2",283,null,{"$f":"D156*E156","v":0}]
[]
[25,"Average 25mm screed from floors in patches.","m2",101,null,{"$f":"D158*E158","v":0}]
[]
[null,"TEMPORARY PARKHOMES"]
[]
[null,"Note: Rates for park homes to include standard windows, burglar bars, curtains and tracks, two tier steps for access, lighting fittings and black boards size: 1200 x 4800mm."]
[]
[null,"M-Projects or other approved temporary park home units:"]
[]
[null,"Provide standard classroom size minimum 7 x 7m or nearest size temporary park homes on site for temporary educational facilities during the construction phase as herewith measured for 8 months, including levelling, two tier steps,  positioning on site and connections to an electrical supply.\nNOTE - The tenderer rate should be inclusive of the rental of units for the 8 month period.","No",7,null,{"$f":"D166*E166","v":0}]
[]
[26,"Provision of electrical compliance certificates for park homes.","No",7,null,{"$f":"D168*E168","v":0}]
[]
[27,"Transport to and from site of park homes as per distance between supplier and site.","No",7,null,{"$f":"D170*E170","v":0}]
[]
[null,"Desludging septic tank by a specialist including disposal:"]
[]
[28,"Septic tank. ","m3",20,null,{"$f":"D174*E174","v":0}]
[]
[null,"Total for Section No. 2: Bill No. 1",{"$nulls":3},{"$f":"SUM(F86:F174)","v":0}]
[]
[]
[null,"BILL NO. 2 : EARTHWORKS (PROVISIONAL)"]
[]
[null,"(CPAP WORK GROUP 104 UNLESS OTHERWISE STATED)."]
[]
[null,"For Preambles refer to the relevant Clauses in the ASAQS Model Preambles for Trades 2008 and Supplementary Preambles which is incorporated in these Bills of Quantities."]
[]
[null,"The Tenderer is referred to the relevant Clauses in the Standard Preambles to All Trades and to the Supplementary Preambles which are incorporated in these Bills of Quantities."]
[]
[null,"SUPPLEMENTARY PREAMBLES"]
[]
[null,"Nature of ground:"]
[]
[null,"The nature of the ground is assumed to be loose sandy material, therefore earth, but possibly interspersed with hard rock or soft rock."]
[]
[null,"Carting away of excavated material:"]
[]
[null,"Descriptions of carting away of excavated material shall be deemed to include loading excavated material onto trucks directly from the excavations or, alternatively, from stock piles situated on the building site."]
[]
[null,"Block Notation"]
[]
[null,"Note: For the purpose of tendering only the total quantity shall be used in calculating the amount for inclusion in the tender at the tendered rates.\nBlock A : Admin Block and Classrooms\nBlock B : Church Hall\nBlock C : 3 Classroom\nBlock X - External Works\nY - General"]
[]
[null,"EXCAVATION AND FILLING OTHER THAN BULK"]
[]
[null,"Excavation in earth not exceeding 2m deep:"]
[]
[1,"Trenches. - apron slabs.","m3",3,null,{"$f":"D205*E205","v":0}]
[]
[2,"Trenches - stair case.","m3",3,null,{"$f":"D207*E207","v":0}]
[]
[null,"Back excavation of vertical sides of excavation in earth for working space including backfilling compacted to 95% Mod AASHTO density:"]
[]
[3,"Not exceeding 0,5m deep.","m2",6,null,{"$f":"D211*E211","v":0}]
[]
[null,"Extra over excavations other than bulk in earth for excavation in:"]
[]
[4,"Soft rock.","m3",1,null,{"$f":"D215*E215","v":0}]
[]
[5,"Hard rock.","m3",1,null,{"$f":"D217*E217","v":0}]
[]
[null,"Risk of collapse of excavations other than bulk:"]
[]
[6,"Sides of trench and hole excavations not exceeding 1,5m deep.","m2",4,null,{"$f":"D221*E221","v":0}]
[]
[null,"KEEPING EXCAVATIONS FREE OF WATER"]
[]
[null,"Keeping excavations free of water:"]
[]
[7,"Keeping excavations free of all water other than subterranean water.","Item",1,null,{"$f":"D227*E227","v":0}]
[]
[null,"CARTING AWAY"]
[]
[null,"Extra over all excavations for loading, carting and dumping surplus excavated material (no allowance made for increase in bulk):"]
[]
[8,"Surplus material from excavations and/or stock piles on site to a dumping site to be located by the contractor or as directed by the engineer.","m3",2.5,null,{"$f":"D233*E233","v":0}]
[]
[null,"EARTH FILLING, ETC"]
[]
[null,"Earth filling of G7 quality material supplied by the Contractor compacted to 95% Mod AASHTO density:"]
[]
[9,"Under surface beds, etc.","m3",2,null,{"$f":"D239*E239","v":0}]
[]
[null,"Compaction of surfaces:"]
[]
[10,"Compaction of ground surface under floors, etc. including scarifying for a depth of 150mm, breaking down oversize material, adding suitable material where necessary and compacting to 93% Mod AASHTO density.","m2",12,null,{"$f":"D243*E243","v":0}]
[]
[null,"TESTS"]
[]
[null,"Prescribed density tests on filling:"]
[]
[11,"Modified AASHTO Density test.","No",1,null,{"$f":"D249*E249","v":0}]
[]
[null,"SOIL POISONING"]
[]
[null,"Approved brand of anti-termite soil poison applied by a Registered Pest Control company and guaranteed against termite infestation for ten years:"]
[]
[12,"Under floors, etc., including forming and poisoning shallow furrows against foundation walls, etc., filling in furrows and ramming.","m2",12,null,{"$f":"D255*E255","v":0}]
[]
[13,"To bottom and sides of trenches.","m2",4,null,{"$f":"D257*E257","v":0}]
[]
[null,"Total for Section No. 2: Bill No. 2",{"$nulls":3},{"$f":"SUM(F205:F257)","v":0}]
[]
[null,"BILL NO.3 : MASONRY (PROVISIONAL)"]
[]
[null,"(CPAP WORK GROUP 118 UNLESS OTHERWISE STATED)"]
[]
[null,"SUPPLEMENTARY PREAMBLES"]
[]
[null,"The Tenderer is referred to the relevant Clauses in the Standard Preambles to All Trades and to the Supplementary Preambles which are incorporated in these Bills of Quantities."]
[]
[null,"For Preambles refer to the relevant Clauses in the ASAQS Model Preambles for Trades 2008 and Supplementary Preambles which is incorporated in these Bills of Quantities."]
[]
[null,"Block Notation"]
[]
[null,"Note: For the purpose of tendering only the total quantity shall be used in calculating the amount for inclusion in the tender at the tendered rates.\nBlock A : Admin Block and Classrooms\nBlock B : Church Hall\nBlock C : 3 Classroom\nBlock X - External Works\nY - General"]
[]
[null,"BRICKWORK"]
[]
[null,"Sizes in descriptions:"]
[]
[null,"Where sizes in descriptions are given in brick units, 'one brick' shall represent the length and 'half brick' the width of a brick."]
[]
[null,"Bagging and sealing:"]
[]
[null,"Walls in two skins described as 'bagged and sealed' shall be deemed to include having the outer face of the inner skin bagged with 1:6 cement and sand mixture and sealed with two coats of bitumen emulsion waterproofing coating."]
[]
[null,"Face bricks:"]
[]
[null,"Bricks shall be ordered timeously to obtain uniformity in size and colour."]
[]
[null,"Pointing:"]
[]
[null,"Descriptions of recessed pointing to fair face brickwork and face brickwork shall be deemed to include square recessed, hollow recessed, weathered pointing, etc."]
[]
[null,"BRICKWORK IN SUPERSTRUCTURE"]
[]
[null,"Brickwork of NFP bricks (7 Mpa nominal compressive strength) in Class II mortar:"]
[]
[1,"Half brick walls in beam filling.","m2",14,null,{"$f":"D297*E297","v":0}]
[]
[2,"Half brick walls.","m2",17,null,{"$f":"D299*E299","v":0}]
[]
[null,"BLOCKWORK IN SUPERSTRUCTURE"]
[]
[3,"One block wall.","m2",146,null,{"$f":"D303*E303","v":0}]
[]
[null,"BRICKWORK SUNDRIES"]
[]
[null,"Brickwork reinforcement:"]
[]
[4,"75mm Wide reinforcement built in horizontally.","m",55,null,{"$f":"D309*E309","v":0}]
[]
[5,"150mm Wide reinforcement built in horizontally.","m",{"$f":"D303*4","v":584},null,{"$f":"D311*E311","v":0}]
[]
[null,"Galvanised hoop iron cramps, ties, etc:"]
[]
[6,"30 x 1,6mm Roof tie 1,6m long with one end fixed to timber and other end built into brickwork.","No",69,null,{"$f":"D315*E315","v":0}]
[]
[null,"Air bricks etc:"]
[]
[7,"229 x 152mm Terra-cotta vermin proof air brick.","No",2,null,{"$f":"D319*E319","v":0}]
[]
[null,"Prestressed fabricated concrete lintels including necessary temporary support:"]
[]
[8,"110 x 75mm Precast concrete lintels over doors and windows.","m",{"$f":"54","v":54},null,{"$f":"D323*E323","v":0}]
[]
[null,"Turning pieces to lintels:"]
[]
[9,"220mm wide turning pieces.","m",54,null,{"$f":"D327*E327","v":0}]
[]
[]
[null,"Total for Section 2: Bill No. 3",{"$nulls":3},{"$f":"SUM(F297:F329)","v":0}]
[]
[null,"BILL NO.4 : CONCRETE, FORMWORK AND REINFORCEMENT (PROVISIONAL)"]
[]
[null,"(CPAP WORK GROUP 110, 111 & 114 UNLESS OTHERWISE STATED)"]
[]
[null,"SUPPLEMENTARY PREAMBLES"]
[]
[null,"The Tenderer is referred to the relevant Clauses in the Standard Preambles to All Trades and to the Supplementary Preambles which are incorporated in these Bills of Quantities."]
[]
[null,"For Preambles refer to the relevant Clauses in the ASAQS Model Preambles for Trades 2008 and Supplementary Preambles which is incorporated in these Bills of Quantities."]
[]
[null,"Cost of tests:"]
[]
[null,"The costs of making, storing and testing of concrete test cubes as required under clause 7 'Tests' of SABS 1200 G shall include the cost of providing cube moulds necessary for the purpose, for testing costs and for submitting reports."]
[]
[null,"Formwork:"]
[]
[null,"Descriptions of formwork shall be deemed to include use and waste only (except where described as left in or permanent), for fitting together in the required forms, wedging, plumbing and fixing to true angles and surfaces as necessary to ensure easy release."]
[]
[null,"The vertical strutting shall be carried down to such construction as is sufficiently strong to afford the required support without damage and shall remain in position until the newly constructed work is able to support itself."]
[]
[null,"Formwork to soffits of solid slabs etc., shall be deemed to be to slabs not exceeding 250mm thick unless otherwise described."]
[]
[null,"Block Notation"]
[]
[null,"Note: For the purpose of tendering only the total quantity shall be used in calculating the amount for inclusion in the tender at the tendered rates.\nBlock A : Admin Block and Classrooms\nBlock B : Church Hall\nBlock C : 3 Classroom\nBlock X - External Works\nY - General"]
[]
[null,"UNREINFORCED CONCRETE CAST ON/IN FORMWORK"]
[]
[null,"20MPa/19mm concrete:"]
[]
[1,"200 x100mm thick concrete infill against walkway.","m3",1,null,{"$f":"D362*E362","v":0}]
[]
[null,"REINFORCED CONCRETE"]
[]
[null,"30MPa/19mm Reinforced concrete cast in/on formwork (Provisional):"]
[]
[2,"Apron.","m3",12,null,{"$f":"D368*E368","v":0}]
[]
[3,"Concrete stairs.","m3",5,null,{"$f":"D370*E370","v":0}]
[]
[4,"Concrete kitchen counter top.","m3",1,null,{"$f":"D372*E372","v":0}]
[]
[null,"TEST BLOCKS"]
[]
[5,"Allow for all necessary concrete test cubes size 150 x 150 x 150mm cast from batches of concrete required for the entire contract as specified, made, stored, cured and tested in accordance with SABS Methods 861 and 863, including use of approved cube mould.","Sets",3,null,{"$f":"D376*E376","v":0}]
[]
[null,"FORMWORK"]
[]
[null,"ROUGH FORMWORK (DEGREE OF ACCURACY II) (CPAP WORK GROUP NO. 111)"]
[]
[null,"Rough Formwork to Sides of:"]
[]
[6,"Edges, risers, ends and reveals not exceeding 300mm high or wide.","m",16,null,{"$f":"D384*E384","v":0}]
[]
[null,"CONCRETE SUNDRIES"]
[]
[null,"Finishing top surfaces of concrete smooth with a wood float:"]
[]
[7,"Surface beds, slabs, etc.","m2",14,null,{"$f":"D390*E390","v":0}]
[]
[null,"MOVEMENT JOINTS, ETC."]
[]
[null,"Movement joints between vertical concrete and brick surfaces:"]
[]
[8,"10mm softboard isolation joints not exceeding 300mm wide.","m",16,null,{"$f":"D396*E396","v":0}]
[]
[null,"REINFORCEMENT (CPAP WORK GROUP NO. 114)"]
[]
[null,"Fabric reinforcement:"]
[]
[9,"Type 193 fabric reinforcement in concrete surface beds, slabs, etc.","m2",11,null,{"$f":"D402*E402","v":0}]
[]
[null,"Total for Section 2: Bill No. 4",{"$nulls":3},{"$f":"SUM(F362:F403)","v":0}]
[]
[null,"BILL NO.5 : ROOF COVERINGS (PROVISIONAL)"]
[]
[null,"(CPAP WORK GROUP 125 UNLESS OTHERWISE STATED)"]
[]
[null,"SUPPLEMENTARY PREAMBLES"]
[]
[null,"The Tenderer is referred to the relevant Clauses in the Standard Preambles to All Trades and to the Supplementary Preambles which are incorporated in these Bills of Quantities."]
[]
[null,"For Preambles refer to the relevant Clauses in the ASAQS Model Preambles for Trades 2008 and Supplementary Preambles which is incorporated in these Bills of Quantities."]
[]
[null,"Block Notation."]
[]
[null,"Note: For the purpose of tendering only the total quantity shall be used in calculating the amount for inclusion in the tender at the tendered rates.\nBlock A : Admin Block and Classrooms\nBlock B : Church Hall\nBlock C : 3 Classroom\nBlock X - External Works\nY - General"]
[]
[null,"CORRUGATED METAL SHEETING AND ACCESSORIES"]
[]
[null,"Fixing of all roof sheeting is to be in accordance with the Manufacturer's approved Instruction Book. The Manufacturer shall comply with ISO9002 Quality Management System."]
[]
[null,"0.53mm Thick Aluminium-Zinc Corrugated (AZ150) profile 'colourplus' roof sheeting or other approved finish to both sides, or similar approved. Thickness of sheeting to be confirmed on site where matching existing. (Colour on top: to be confirmed and factory standard grey to underside). Sheets to be fixed to every purlin using appropriate roof screws including 19mm galvanised/rubber washers.. At the ridge, and eave purlins, fixing to be at every crown. Purlins spaced as per manufacturer's specifications, on engineered timber trusses (or existing). Holes in sheets to be drilled, not punched. Sheets are to be fixed to 76 x 50mm purlins spaced at max 1100mm (to manufacturer's specification as per sheeting requirements) on engineered timber trusses (trusses and purlins to be replaced where specified and sizes may vary)."]
[]
[1,"Roof covering with minimum pitch not exceeding 25 degrees including 26mm diameter washers with rubber gaskets.","m2",783,null,{"$f":"D426*E426","v":0}]
[]
[2,"Standard galvanised ridge capping (500mm girth) screwed through sheeting to purlins.","m",83,null,{"$f":"D428*E428","v":0}]
[]
[3,"Galvanised 13mm hexagon Mesh to be installed on both eave overhangs. ","m2",{"$f":"42+39+55","v":136},null,{"$f":"D430*E430","v":0}]
[]
[null,"Flashings:"]
[]
[4,"Polyclosers (polyethylene) or similar approved.","m",166,null,{"$f":"D434*E434","v":0}]
[]
[5,"Apex flashings 462mm girth.","m",31,null,{"$f":"D436*E436","v":0}]
[]
[6,"Waterproofing membrane plus side wall flashing (231 x 231mm) to all split level roofs.","m",58.8,null,{"$f":"D438*E438","v":0}]
[]
[null,"ROOF AND WALL LINING AND INSULATION"]
[]
[null,"Reflective foil insulation underlay (economical, durable, double sided reflective foil laminate with advanced fire retardant properties) over trusses and under purlins on training tape."]
[]
[7,"Reinforced aluminium foil tape to be added on underside of sisalation where sheets overlap of 150mm.","m2",783,null,{"$f":"D444*E444","v":0}]
[]
[8,"48mm Sisalation foil tape to seam joints on the insulation.","m",{"$f":"160+150+154","v":464},null,{"$f":"D446*E446","v":0}]
[]
[null,"Total for Section 2: Bill No. 5",{"$nulls":3},{"$f":"SUM(F426:F447)","v":0}]
[]
[null,"BILL NO.6 : CARPENTRY AND JOINERY (PROVISIONAL)"]
[]
[null,"(CPAP WORK GROUP 126 UNLESS OTHERWISE STATED)."]
[]
[null,"SUPPLEMENTARY PREAMBLES"]
[]
[null,"The Tenderer is referred to the relevant Clauses in the Standard Preambles to All Trades and to the Supplementary Preambles which are incorporated in these Bills of Quantities."]
[]
[null,"For Preambles refer to the relevant Clauses in the ASAQS Model Preambles for Trades 2008 and Supplementary Preambles which is incorporated in these Bills of Quantities."]
[]
[null,"Block Notation"]
[]
[null,"Note: For the purpose of tendering only the total quantity shall be used in calculating the amount for inclusion in the tender at the tendered rates.\nBlock A : Admin Block and Classrooms\nBlock B : Church Hall\nBlock C : 3 Classroom\nBlock X - External Works\nY - General"]
[]
[null,"Fixing:"]
[]
[null,"Items described as 'nailed' shall be deemed to be fixed with hardened steel nails or pins, or to be shot-pinned, to brickwork or concrete."]
[]
[null,"Items described as 'plugged' shall be deemed to include screwing to fibre, plastic or metal plugs at not exceeding 500mm centres, and where described as 'bolted', the bolts have been given elsewhere."]
[]
[null,"Purlins are fixed to rafters with hurricane clips. One clip at every intersection and two clips at ends if rafters with 2 no. 8mm diameter bolts or 8 no. 35mm long x 2.8mm diameter shouldered serrated nails per clip."]
[]
[null,"Timber treatment:"]
[]
[null,"All roof timbers must be C.C.A treated."]
[]
[null,"ROOF CONSTRUCTION"]
[]
[null,"Plate nailed timber roof truss construction:"]
[]
[1,"Double pitch roof trusses having 8465mm clear span between 220mm brickwalls and 1000mm high to apex with one 1000mm eaves projection and one 600mm eaves projection.","No",23,null,{"$f":"D480*E480","v":0}]
[]
[null,"Engineers Certificate and Drawings:"]
[]
[2,"Allowance for the issue of TR1 and TR2 certificates maximum rate.","Item",1,null,{"$f":"D484*E484","v":0}]
[]
[null,"Wrought softwood:"]
[]
[3,"38 x 114mm Rafter.","m",82,null,{"$f":"D488*E488","v":0}]
[]
[4,"38 x 114mm Wall plate.","m",105,null,{"$f":"D490*E490","v":0}]
[]
[5,"50 x 76mm Purlins.","m",793,null,{"$f":"D492*E492","v":0}]
[]
[6,"76 x 150mm Timber Beam.","m",26,null,{"$f":"D494*E494","v":0}]
[]
[7,"38 x 38mm Battens.","m",{"$f":"572+484+567","v":1623},null,{"$f":"D496*E496","v":0}]
[]
[8,"38 x 114mm False Timber fixed onto truss for fascia boards.","m",147,null,{"$f":"D498*E498","v":0}]
[]
[9,"38 x 114mm False Timber fixed onto truss for barge boards.","m",64,null,{"$f":"D500*E500","v":0}]
[]
[10,"76 x 50mm False Timber fixed onto the external side of the gable walls between purlins for covering of beam filling.","m",53,null,{"$f":"D502*E502","v":0}]
[]
[11,"Hurricane clips.","No",590,null,{"$f":"D504*E504","v":0}]
[]
[null,"EAVES, VERGES, ETC."]
[]
[null,"Facia and Barge Boards:"]
[]
[null,"Eaves:"]
[]
[12,"10mm Thick x 225 medium density un-grooved fibre cement fascia board including joiners (product no. 040-903). Drill for and fix with hot dipped galvanized drive screws and washers.","m",176,null,{"$f":"D512*E512","v":0}]
[]
[null,"Verges:"]
[]
[13,"Extra over for 200 x 100mm 90 degree angle sheet metal flashing, same colour as roof sheetimg fitted to gable walls and fixed and roof edges. Barge board over both sides of flashing to be bent with 2,5 degree 10mm wide inner  and outer angle.","m",64,null,{"$f":"D516*E516","v":0}]
[]
[null,"Solid Meranti Doors:"]
[]
[14,"2032 x 813 x 40mm Meranti hardwood timber framed, ledged, braced and battened door with 110 x 20mm braces and min x 20 T.G. & V jointed battens.","No",11,null,{"$f":"D520*E520","v":0}]
[]
[null,"SUNDRIES"]
[]
[null,"Weather strips:"]
[]
[15,"45mm x 915mm Weather strips fitted to doors using 4 No. 70mm long brass screws, plugged.","No",11,null,{"$f":"D526*E526","v":0}]
[]
[null,"Total for Section 2: Bill No. 6",{"$nulls":3},{"$f":"SUM(F480:F526)","v":0}]
[]
[null,"BILL NO. 7 : CEILINGS PARTITIONS AND ACCESS FLOORING (PROVISIONAL)"]
[]
[null,"(CPAP WORK GROUP 129 UNLESS OTEHERWISE STATED)."]
[]
[null,"For Preambles refer to the relevant Clauses in the ASAQS Model Preambles for Trades 2008 and Supplementary Preambles which is incorporated in these Bills of Quantities."]
[]
[null,"The Tenderer is referred to the relevant Clauses in the Standard Preambles to All Trades and to the Supplementary Preambles which are incorporated in these Bills of Quantities."]
[]
[null,"Block Notation"]
[]
[null,"Note: For the purpose of tendering only the total quantity shall be used in calculating the amount for inclusion in the tender at the tendered rates.\nBlock A : Admin Block and Classrooms\nBlock B : Church Hall\nBlock C : 3 Classroom\nBlock X - External Works\nY - General"]
[]
[null,"NAILED UP AND SCREW UP CEILINGS (CPAP Work Group No 126)"]
[]
[null,"9.0mm \"Everite Nutec\" plain boards or similar approved, fixed to 38 x 38mm on edge timber brandering at max 300mm centres with timber cover strips at joints."]
[]
[1,"Ceilings fixed to 38 x 38mm S.A. Pine brandering at maximum 300 c/c nailed to underside of 114 x 38mm timbers.","m2",{"$f":"161+174+160","v":495},null,{"$f":"D546*E546","v":0}]
[]
[2,"Extra over ceiling for 900 x 900mm trap door of 38 x 38mm wrought softwood rebated framing with one 38 x 38mm sawn softwood cross brander covered with ceiling board and fitted flush in opening.","No",3,null,{"$f":"D548*E548","v":0}]
[]
[null,"Cornices:"]
[]
[3,"75mm Fibre cement cornice glued to ceiling board and wall with good adhesive.","m",90,null,{"$f":"D552*E552","v":0}]
[]
[null,"Total for Section 2: Bill No. 7",{"$nulls":3},{"$f":"SUM(F545:F553)","v":0}]
[]
[null,"BILL NO.8 : IRONMONGERY (PROVISIONAL)"]
[]
[null,"(CPAP WORK GROUP 132 UNLESS OTHERWISE STATED)"]
[]
[null,"SUPPLEMENTARY PREAMBLES"]
[]
[null,"The Tenderer is referred to the relevant Clauses in the Standard Preambles to All Trades and to the Supplementary Preambles which are incorporated in these Bills of Quantities."]
[]
[null,"For Preambles refer to the relevant Clauses in the ASAQS Model Preambles for Trades 2008 and Supplementary Preambles which is incorporated in these Bills of Quantities."]
[]
[null,"Block Notation"]
[]
[null,"Note: For the purpose of tendering only the total quantity shall be used in calculating the amount for inclusion in the tender at the tendered rates.\nBlock A : Admin Block and Classrooms\nBlock B : Church Hall\nBlock C : 3 Classroom\nBlock X - External Works\nY - General"]
[]
[null,"HINGES, BOLTS, ETC."]
[]
[null,"Union or other approved lock sets:"]
[]
[1,"Stainless steel two ball bearing butt hinge, size 100 x 75 x 3mm.","Pairs",11,null,{"$f":"D574*E574","v":0}]
[]
[2,"Union 4 Lever Commercial Series Mortice lock 2247-7855 with CP on brass Gower Lever handles CB862-05Ch","No",11,null,{"$f":"D576*E576","v":0}]
[]
[null,"HANDLES"]
[]
[null,"Door and Window Handles:"]
[]
[3,"132mm brass window handle R/H,including brackets, etc.","No",22,null,{"$f":"D582*E582","v":0}]
[]
[4,"132mm brass window handle L/H, including brackets, etc.","No",23,null,{"$f":"D584*E584","v":0}]
[]
[null,"SUNDRIES"]
[]
[null,"Door stop:"]
[]
[5,"38mm Diameter rubber door stop, plugged and screwed to wall with 50mm long brass screw.","No",11,null,{"$f":"D590*E590","v":0}]
[]
[null,"Fixed Projection Boards:"]
[]
[6,"Fixed projection non-reflective white board, aluminium framed, magnetic surface centre board 2420 x 1220 mm complete with 2 swing leaf aluminium framed magnetic chalk boards (1220 x 1210 mm) without any lines or graphics, etc., with heavy duty hinges and one complete aluminium pen tray (2250 mm) for the full length of the centre board.\nPrice to include 1 complete magnetic starter pack consisting of the following for each board supplied:\n4 x white board markers (red, green, black, blue)\n1 x cleaning cloth\n1 x magnetic eraser\n1 x cleaning fluid 250 ml\n4 x moulded magnets","No",6,null,{"$f":"D594*E594","v":0}]
[]
[null,"Pinning Boards:"]
[]
[7,"Pinning board 2400 x 1200mm high as \"Vitrex 2309\" fixed complete.","No",6,null,{"$f":"D598*E598","v":0}]
[]
[8,"Provisional amount for the supply and install of one (1) smart interactive board (screen) to be installed in the team teaching or general multi-purpose classroom or standard classroom.","No",1,{"v":120000,"d":"R120,000.00"},{"$f":"+D600*E600","v":{"v":120000,"d":"R120,000.00"}}]
[]
[9,"Allow for profit and attendance on the abovementioned item %.","%",{"$f":"E600","v":{"v":120000,"d":"R120,000.00"}},null,0]
[]
[10,"Provisional amount to allow for training to be given on the functioning of the smart interactive board (screen).","Item",1,{"v":10000,"d":"R10,000.00"},{"v":10000,"d":"R10,000.00"}]
[]
[11,"Allow for profit and attendance on the abovementioned item %.","%",{"$f":"E604","v":{"v":10000,"d":"R10,000.00"}},null,0]
[]
[null,"Total for Section 2: Bill No. 8",{"$nulls":3},{"$f":"SUM(F574:F607)","v":{"v":130000,"d":"R130,000.00"}}]
[]
[null,"BILL NO.9 : METALWORK (PROVISIONAL)"]
[]
[null,"(CPAP WORK GROUP 136 UNLESS OTHERWISE STATED)."]
[]
[null,"For Preambles refer to the relevant Clauses in the ASAQS Model Preambles for Trades 2008 and Supplementary Preambles which is incorporated in these Bills of Quantities."]
[]
[null,"The Tenderer is referred to the relevant Clauses in the Standard Preambles to All Trades and to the Supplementary Preambles which are incorporated in these Bills of Quantities."]
[]
[null,"Block Notation"]
[]
[null,"Note: For the purpose of tendering only the total quantity shall be used in calculating the amount for inclusion in the tender at the tendered rates.\nBlock A : Admin Block and Classrooms\nBlock B : Church Hall\nBlock C : 3 Classroom\nBlock X - External Works\nY - General"]
[]
[null,"GALVANISED BURGLAR BARS"]
[]
[null,"Burglar Bars:"]
[]
[1,"Galvanised 30 x 3mm Thick flat burglar bars.","m2",70,null,{"$f":"D626*E626","v":0}]
[]
[null,"SECURITY GATES"]
[]
[null,"Screens and Galvanised gates."]
[]
[2,"Galvanised single gates size 843 x 2250mm high of 40 x 60 x 3mm rectangular tubing with 19mm diameter steel rods at 110mm centre and 40 x 6mm horizontal support flat bars fixed with hinges to steel frame  of 45 x 45 x 3mm rectangular tubing fixed to walls with bolts and lugs including padlock plate.","No",11,null,{"$f":"D632*E632","v":0}]
[]
[null,"HOT DIP GALVANISED METAL WINDOWS"]
[]
[null,"Standard Education window frame, hot dipped galvanised metal window, complete with burglar bars, bottom hinged, complete with centre window mechanism closing hook and lug and opening restrictors. SABS approved."]
[]
[3,"Standard school window size 965 x 1200mm high.","No",16,null,{"$f":"D638*E638","v":0}]
[]
[4,"Standard school window size 1345 x 1445mm high.","No",13,null,{"$f":"D640*E640","v":0}]
[]
[5,"132mm brass window handle R/H, including brackets, etc.  ","No",29,null,{"$f":"D642*E642","v":0}]
[]
[6,"132mm brass window handle L/H, including brackets, etc.  ","No",29,null,{"$f":"D644*E644","v":0}]
[]
[null,"GALVANISED PRESSED STEEL DOOR FRAMES"]
[]
[null,"1,2mm Double rebated frames suitable for existing one brick walls:"]
[]
[7,"Steel door frame size 813 x 2032mm high.","No",8,null,{"$f":"D650*E650","v":0}]
[]
[null,"STEEL BALUSTRADING"]
[]
[null,"GALVANISED STEEL BALUSTRADING"]
[]
[null,"Welded balustrading to walkways."]
[]
[8,"Standard ball type mild steel tubular horizontal balustrade, 1000mm high formed with 34mm diameter hollow section continuous top rail, continuous intermediate rail, bottom rail and stanchions at 1500mm centres, welded to 150 x 50 x 10mm thick base plate bolted to brickwork, including an approved epoxy grout.","m",15,null,{"$f":"D658*E658","v":0}]
[]
[null,"ROLLER SHUTTER DOORS "]
[]
[9,"1.0 x 1.5m hatch with steel roll up door.","No",1,null,{"$f":"D662*E662","v":0}]
[]
[null,"ALUMINIUM AWNING "]
[]
[10,"Aluminium awning to specialists detail.","Prov Sum",1,{"v":15000,"d":"R15,000.00"},{"$f":"D666*E666","v":{"v":15000,"d":"R15,000.00"}}]
[]
[11,"Profit and attendance.","%",{"$f":"F666","v":{"v":15000,"d":"R15,000.00"}},null,{"$f":"D668*E668","v":0}]
[]
[null,"Total for Section 2: Bill No. 9",{"$nulls":3},{"$f":"SUM(F628:F669)","v":{"v":15000,"d":"R15,000.00"}}]
[]
[null,"BILL NO.10 : PLASTERING (PROVISIONAL)"]
[]
[null,"(CPAP WORK GROUP 142 UNLESS OTHERWISE STATED)."]
[]
[null,"SUPPLEMENTARY PREAMBLES"]
[]
[null,"The Tenderer is referred to the relevant Clauses in the Standard Preambles to All Trades and to the Supplementary Preambles which are incorporated in these Bills of Quantities."]
[]
[null,"For Preambles refer to the relevant Clauses in the ASAQS Model Preambles for Trades 2008 and Supplementary Preambles which is incorporated in these Bills of Quantities."]
[]
[null,"Block Notation"]
[]
[null,"Note: For the purpose of tendering only the total quantity shall be used in calculating the amount for inclusion in the tender at the tendered rates.\nBlock A : Admin Block and Classrooms\nBlock B : Church Hall\nBlock C : 3 Classroom\nBlock X - External Works\nY - General"]
[]
[null,"SCREEDS"]
[]
[null,"Screeds wood floated on concrete:"]
[]
[1,"25mm Thick on floors and landings.","m2",101,null,{"$f":"D690*E690","v":0}]
[]
[null,"INTERNAL PLASTER."]
[]
[null,"3:1 Cement plaster on brickwork:"]
[]
[2,"On internal walls.","m2",{"$f":"29+284","v":313},null,{"$f":"D696*E696","v":0}]
[]
[null,"EXTERNAL PLASTER."]
[]
[null,"3:1 Cement plaster on brickwork:"]
[]
[3,"On internal walls.","m2",{"$f":"146*2","v":292},null,{"$f":"D702*E702","v":0}]
[]
[null,"Total for Section 2: Bill No. 10",{"$nulls":3},{"$f":"SUM(F690:F703)","v":0}]
[]
[null,"BILL NO.11 : PLUMBING AND DRAINAGE (PROVISIONAL)"]
[]
[null,"(CPAP WORK GROUP 148 UNLESS OTHERWISE STATED)"]
[]
[null,"SUPPLEMENTARY PREAMBLES"]
[]
[null,"The Tenderer is referred to the relevant Clauses in the Standard Preambles to All Trades and to the Supplementary Preambles which are incorporated in these Bills of Quantities."]
[]
[null,"For Preambles refer to the relevant Clauses in the ASAQS Model Preambles for Trades 2008 and Supplementary Preambles which is incorporated in these Bills of Quantities."]
[]
[null,"Block Notation"]
[]
[null,"Note: For the purpose of tendering only the total quantity shall be used in calculating the amount for inclusion in the tender at the tendered rates.\nBlock A : Admin Block and Classrooms\nBlock B : Church Hall\nBlock C : 3 Classroom\nBlock X - External Works\nY - General"]
[]
[null,"Fixing of pipes:"]
[]
[null,"Unless specifically otherwise stated, descriptions of pipes shall be deemed to include for fixing to walls etc. casting in, building in or suspending not exceeding 1m below suspension level."]
[]
[null,"RAINWATER DISPOSAL"]
[]
[null,"Seamless' Aluminium:"]
[]
[1,"150 x 150mm box gutters with white baked enamel finish fixed with white concealed brackets.","m",147,null,{"$f":"D728*E728","v":0}]
[]
[2,"100 x 75mm fluted aluminium downpipes with white baked enamel finish.","m",50,null,{"$f":"D730*E730","v":0}]
[]
[3,"Extra over eaves gutter for drop box suitable for 150 x 150mm box gutter.","No",10,null,{"$f":"D732*E732","v":0}]
[]
[4,"Extra over eaves gutter for stopped ends.","No",14,null,{"$f":"D734*E734","v":0}]
[]
[5,"Extra over rainwater pipe for shoes and bends.","No",10,null,{"$f":"D736*E736","v":0}]
[]
[null,"Total for Section 2: Bill No. 11",{"$nulls":3},{"$f":"SUM(F728:F736)","v":0}]
[]
[null,"BILL NO.12 : GLAZING (PROVISIONAL)"]
[]
[null,"(CPAP WORK GROUP 150 UNLESS OTHERWISE STATED)"]
[]
[null,"SUPPLEMENTARY PREAMBLES"]
[]
[null,"The Tenderer is referred to the relevant Clauses in the Standard Preambles to All Trades and to the Supplementary Preambles which are incorporated in these Bills of Quantities.  The Tenderer is to allow for providing a Glazing Certificate upon completion. "]
[]
[null,"For Preambles refer to the relevant Clauses in the ASAQS Model Preambles for Trades 2008 and Supplementary Preambles which is incorporated in these Bills of Quantities."]
[]
[null,"Block Notation"]
[]
[null,"Note: For the purpose of tendering only the total quantity shall be used in calculating the amount for inclusion in the tender at the tendered rates.\nBlock A : Admin Block and Classrooms\nBlock B : Church Hall\nBlock C : 3 Classroom\nBlock X - External Works\nY - General"]
[]
[null,"The Tenderer is to allow for providing a Glazing Certificate upon completion."]
[]
[null,"GLAZING TO STEEL WITH PUTTY"]
[]
[null,"6mm Toughened safety glass:"]
[]
[1,"Panes exceeding 0,1m2 and not exceeding 0,5m2.","m2",46,null,{"$f":"D760*E760","v":0}]
[]
[2,"Putty to existing windows.","m2",5,null,{"$f":"D762*E762","v":0}]
[]
[3,"Certificate of Compliance for glazing as per SALGA requirements.","Item",1,null,{"$f":"D764*E764","v":0}]
[]
[null,"Total for Section 2: Bill No. 12",{"$nulls":3},{"$f":"SUM(F760:F765)","v":0}]
[]
[null,"BILL NO.13 : PAINTWORK (PROVISIONAL)"]
[]
[null,"(CPAP WORK GROUP 152 UNLESS OTHERWISE STATED)"]
[]
[null,"SUPPLEMENTARY PREAMBLES"]
[]
[null,"The Tenderer is referred to the relevant Clauses in the Standard Preambles to All Trades and to the Supplementary Preambles which are incorporated in these Bills of Quantities."]
[]
[null,"For Preambles refer to the relevant Clauses in the ASAQS Model Preambles for Trades 2008 and Supplementary Preambles which is incorporated in these Bills of Quantities."]
[]
[null,"Block Notation"]
[]
[null,"Note: For the purpose of tendering only the total quantity shall be used in calculating the amount for inclusion in the tender at the tendered rates.\nBlock A : Admin Block and Classrooms\nBlock B : Church Hall\nBlock C : 3 Classroom\nBlock X - External Works\nY - General"]
[]
[null,"FILLING: Fill defects with a good wall crack filler."]
[]
[null,"Prime with plaster primer or multi-surface primer. Apply liberally in order to obtain an unbroken barrier coat to seal surface properly."]
[]
[null,"UNDERCOAT: To all surfaces prepared and primed as above, apply a coat of universal undercoat."]
[]
[null,"Ceiling and cornice to be prepared adequately and painted 2 coats Super Acrylic Polvin matt white paint. Items as above or similar approved."]
[]
[null,"Prepare and paint with a water-based satin finish paint as described below:\nSURFACE PREPARATION : Ensure that substrates as well as primed and undercoated surfaces are clean, sound and dry.\nNEW WORK : Prime with PLASTER PRIMER or MULTI SURFACE PRIMER to form an unbroken barrier coat to seal alkaline surfaces properly.\nFILLING: Fill defects with a good wall crack filler as appropriate."]
[]
[null,"PAINTWORK, ETC TO PREVIOUSLY PAINTED WORK"]
[]
[null,"ON INTERNAL FLOATED PLASTER SURFACES"]
[]
[null,"Prepare surfaces and remove all loose material, apply one coat acrylic PVA suitable for washing with a mild detergent and with a matt finish and two coats alkaline resistant 100% pure acrylic filler coat. Colour to be discussed on site. To be in accordance with manufacturers specification:"]
[]
[1,"On interior walls.","m2",{"$f":"29+966+292","v":1287},null,{"$f":"D798*E798","v":0}]
[]
[null,"ON EXTERNAL FLOATED PLASTER SURFACES."]
[]
[null,"Prepare surfaces and remove all loose material. Apply one coat alkaline resistant primer, two coats superior equality acrylic emulsion paint for external:"]
[]
[2,"On exterior walls.","m2",{"$f":"717+296","v":1013},null,{"$f":"D804*E804","v":0}]
[]
[null,"ON FIBRE-CEMENT BOARD SURFACES"]
[]
[null,"Apply one coat 'Universal Undercoat (UC1) and apply two coats \"Super Universal Enamel' paint:"]
[]
[3,"On exterior fascia's and barge boards.","m2",49,null,{"$f":"D810*E810","v":0}]
[null,null," "]
[null,"ON GYPSUM CEILING BOARD SURFACES"]
[]
[null,"Prepare surfaces and remove all loose material, and apply two coats semi-gloss PVA paint. Colour: white, to comply with SABS 643 \"Co-polymer\", or equivalent standard:"]
[]
[4,"On ceilings.","m2",168,null,{"$f":"D816*E816","v":0}]
[]
[5,"On cornices.","m2",14,null,{"$f":"D818*E818","v":0}]
[]
[null,"ON WOOD SURFACES"]
[]
[null,"Stop, fill, sand down with 150 grit sandpaper in direction of grain, seal with wood care knotting (PK2). Finish with wood care sun proofing coating to doors and trims:"]
[]
[6,"On doors (both sides measured over the full flat area).","m2",41,null,{"$f":"D824*E824","v":0}]
[]
[null,"Apply two coats 'Carbolineum' stained oil preservatives:"]
[]
[7,"On roof timbers at eaves and verges.","m2",41,null,{"$f":"D828*E828","v":0}]
[]
[null,"ON METAL SURFACES"]
[]
[null,"One coat alkyd based zinc phosphate primer and two coats premium quality polyurethane enamel paint, on steel:"]
[]
[8,"Window frames.","m2",28,null,{"$f":"D834*E834","v":0}]
[]
[null,"Total for Section 2: Bill No. 13",{"$nulls":3},{"$f":"SUM(F798:F835)","v":0}]
[]
[null,"BILL NO. 14 - ELECTRICAL (PROVISIONAL)"]
[]
[null,"The Tenderer is to allow for Preliminary and General costs in his rates."]
[]
[null,"Block Notation "]
[]
[null,"Note: For the purpose of tendering only the total quantity shall be used in calculating the amount for inclusion in the tender at the tendered rates.\nBlock A : Admin Block and Classrooms\nBlock B : Church Hall\nBlock C : 3 Classroom\nBlock X - External Works\nY - General"]
[]
[null,"Nett price for site establishment, site administration and compliance with the General Conditions of Contract and Specifications as laid down in this document where and as applicable."]
[]
[1,"Site administration (time related).","SUM",3,null,{"$f":"D848*E848","v":0}]
[]
[2,"Compliance with General Conditions of Contract (time related).","SUM",3,null,{"$f":"D850*E850","v":0}]
[]
[3,"Allow for attendance on the Specialist Lightning Protection Sub-Contractor for the satisfactory installation, testing and certification of the lightning protection system.","SUM",3,null,{"$f":"D852*E852","v":0}]
[]
[4,"Allow for compliance with the Occupational Health and Safety specification complete with the issue of a safety file and induction of all personnel.","SUM",3,null,{"$f":"D854*E854","v":0}]
[]
[null,"Labour allowance for additional sundry disconnections, relocations and temporary power supplies.  Time to be charged only as approved by Electrical Engineer."]
[]
[5,"Supervisor.","Hrs",14,null,{"$f":"D858*E858","v":0}]
[]
[6,"Electrician.","Hrs",28,null,{"$f":"D860*E860","v":0}]
[]
[7,"Labourer.","Hrs",44,null,{"$f":"D862*E862","v":0}]
[]
[null,"LOW VOLTAGE CABLE:"]
[]
[null,"Provide, install, test and commission the following 1000V PVC/SWA/PVC copper cables.  Prices shall allow for the installation of cables in cable ducts, through sleeves, conduit or installation against vertical and horizontal levels (e.g. walls poles etc)."]
[]
[null,"10mm² x 2 Core Concentric Cable installed on poles:"]
[]
[8,"Supply.","m",155,null,{"$f":"D870*E870","v":0}]
[]
[9,"Install.","m",155,null,{"$f":"D872*E872","v":0}]
[]
[null,"7m gum pole planted 1m deep:"]
[]
[10,"Supply.","m",3,null,{"$f":"D876*E876","v":0}]
[]
[11,"Install.","m",3,null,{"$f":"D878*E878","v":0}]
[]
[null,"TERMINATIONS"]
[]
[null,"Terminate and make off the following 1000V PVC/SWA/PVC cables in a cable gland according to the manufacturer's instructions. Provide the cores with lugs and bolt onto terminals.  The cable gland and marking of the cable shall also be allowed for."]
[]
[null,"10mm² x 2 Core Concentric Cable:"]
[]
[12,"Supply.","ea.",6,null,{"$f":"D886*E886","v":0}]
[]
[13,"Install.","ea.",6,null,{"$f":"D888*E888","v":0}]
[]
[null,"Pole clamp for Concentric cable:"]
[]
[14,"Supply.","ea.",6,null,{"$f":"D892*E892","v":0}]
[]
[15,"Install","ea.",6,null,{"$f":"D894*E894","v":0}]
[]
[null,"EXCAVATIONS"]
[]
[null,"All prices below shall include the excavation of trenches and holes, separating of stones, ground, and rock, levelling of trench bed, refill compacting and reparation of all surfaces to their original finish."]
[]
[16,"Excavate in soft ground.","m",45,null,{"$f":"D900*E900","v":0}]
[]
[17,"Excavate in soft rock.","m",31.5,null,{"$f":"D902*E902","v":0}]
[]
[18,"Excavate in hard rock.","m",13.5,null,{"$f":"D904*E904","v":0}]
[]
[19,"Test and issue a Certificate of Compliance as per SANS 10142.","No ",3,null,{"$f":"D906*E906","v":0}]
[]
[null,"DISTRIBUTION BOARDS:"]
[]
[null,"The Contractor shall allow for the supply and installation of 400/231V Indoor Switchboards in Accordance with IEC6042-1, SANS 10142-1 and SANS 1073-1, as detailed in the Schedule of distribution boards."]
[]
[null,"60A single pole circuit breaker, 5kA:"]
[]
[20,"Supply.","m",3,null,{"$f":"D914*E914","v":0}]
[]
[21,"Install.","m",3,null,{"$f":"D916*E916","v":0}]
[]
[null,"Distribution board as per schedule 1:"]
[]
[22,"Supply.","m",3,null,{"$f":"D920*E920","v":0}]
[]
[23,"Install.","m",3,null,{"$f":"D922*E922","v":0}]
[]
[null,"CONDUIT"]
[]
[null,"20mm diameter PVC conduit:"]
[]
[24,"Supply.","m",435,null,{"$f":"D928*E928","v":0}]
[]
[25,"Install on surface.","m",261,null,{"$f":"D930*E930","v":0}]
[]
[26,"Chased in wall.","ea.",174,null,{"$f":"D932*E932","v":0}]
[]
[null,"CIRCUIT WIRING"]
[]
[null,"The supply and installation in conduit of stranded copper, PVC insulated conductors in groups."]
[]
[null,"2 x 1.5mm² and 2.5mm² earth:"]
[]
[27,"Supply.","m",775,null,{"$f":"D940*E940","v":0}]
[]
[28,"Install.","m",775,null,{"$f":"D942*E942","v":0}]
[]
[null,"2 x 2.5mm² and 2.5mm² earth:"]
[]
[29,"Supply.","m",465,null,{"$f":"D946*E946","v":0}]
[]
[30,"Install.","m",465,null,{"$f":"D948*E948","v":0}]
[]
[null,"CONDUIT BOXES"]
[]
[null,"50mm round PVC box flush in concrete & brickwork:"]
[]
[31,"Supply.","Each",86,null,{"$f":"D954*E954","v":0}]
[]
[32,"Install.","Each",86,null,{"$f":"D956*E956","v":0}]
[]
[null,"100 x 100 x 50mm PVC box flush in brickwork:"]
[]
[33,"Supply.","Each",30,null,{"$f":"D960*E960","v":0}]
[]
[34,"Install.","Each",30,null,{"$f":"D962*E962","v":0}]
[]
[null,"100 x 50 x 50mm PVC box flush in brickwork:"]
[]
[35,"Supply","Each",14,null,{"$f":"D966*E966","v":0}]
[]
[36,"Install","Each",14,null,{"$f":"D968*E968","v":0}]
[]
[null,"LIGHT FITTINGS"]
[]
[null,"Luminaires and accessories supplied complete with lamps. All fittings to carry the SABS mark."]
[]
[null,"Surface mount commercial open channel light fitting complete with 2 x 58W lamps and electronic ballasts. Beka or approved equal.:"]
[]
[37,"Supply.","Each",46,null,{"$f":"D976*E976","v":0}]
[]
[38,"Install.","Each",46,null,{"$f":"D978*E978","v":0}]
[]
[null,"IP65 Bulkhead fitting with white polycarbonate base and clear prismatic diffuser. To be supplied complete with a 14W energy saver lamp.:"]
[]
[39,"Supply.","Each",25,null,{"$f":"D982*E982","v":0}]
[]
[40,"Install.","Each",25,null,{"$f":"D984*E984","v":0}]
[]
[null,"SMALL POWER"]
[]
[null,"16A Single Socket Outlet and cover, Crabtree Classic:"]
[]
[41,"Supply.","Each",30,null,{"$f":"D990*E990","v":0}]
[]
[42,"Install.","Each",30,null,{"$f":"D992*E992","v":0}]
[]
[null,"16A Single Lever One Way Light Switch and cover, Crabtree Classic:"]
[]
[43,"Supply.","Each",10,null,{"$f":"D996*E996","v":0}]
[]
[44,"Install.","Each",10,null,{"$f":"D998*E998","v":0}]
[]
[null,"16A Single Lever Two Way Light Switch and cover, Crabtree Classic:"]
[]
[45,"Supply.","Each",3,null,{"$f":"D1002*E1002","v":0}]
[]
[46,"Install.","Each",3,null,{"$f":"D1004*E1004","v":0}]
[]
[null,"10A Electric Photocell (Day / Night Switch):"]
[]
[47,"Supply.","Each",3,null,{"$f":"D1008*E1008","v":0}]
[]
[48,"Install.","Each",3,null,{"$f":"D1010*E1010","v":0}]
[]
[null,"Surface 300 x 300 Telkom Junction Box Complete with backing Board:"]
[]
[49,"Supply.","Each",2,null,{"$f":"D1014*E1014","v":0}]
[]
[50,"Install.","Each",2,null,{"$f":"D1016*E1016","v":0}]
[]
[null,"TRUNKING AND ACCESSORIES.:"]
[]
[null,"Galvanised steel wiring trunking complete with all accessories, metal cover plates, and as indicated on drawings, suspended from slab or steel structure, excluding conduit work and wiring. Supports to include all:"]
[]
[null,"Cabstrut P8200 steel Trunking per meter:"]
[]
[51,"Supply.","m",96,null,{"$f":"D1024*E1024","v":0}]
[]
[52,"Install.","m",96,null,{"$f":"D1026*E1026","v":0}]
[]
[null,"T-pieces:"]
[]
[53,"Supply.","Each ",3,null,{"$f":"D1030*E1030","v":0}]
[]
[54,"Install.","Each ",3,null,{"$f":"D1032*E1032","v":0}]
[]
[null,"Bends:"]
[]
[55,"Supply.","Each ",3,null,{"$f":"D1036*E1036","v":0}]
[]
[56,"Install.","Each ",3,null,{"$f":"D1038*E1038","v":0}]
[]
[null,"End caps:"]
[]
[57,"Supply.","Each ",9,null,{"$f":"D1042*E1042","v":0}]
[]
[58,"Install.","Each ",9,null,{"$f":"D1044*E1044","v":0}]
[]
[null,"ELECTRONIC SIREN / BELL.:"]
[]
[null,"Micro Sound Bell and Siren Motorised 230Vac 116db:"]
[]
[59,"Supply.","Each ",1,null,{"$f":"D1050*E1050","v":0}]
[]
[60,"Install.","Each ",1,null,{"$f":"D1052*E1052","v":0}]
[]
[null,"Timer Switch:"]
[]
[61,"Supply.","Each ",1,null,{"$f":"D1056*E1056","v":0}]
[]
[62,"Install.","Each ",1,null,{"$f":"D1058*E1058","v":0}]
[]
[null,"Power Supply:"]
[]
[63,"Supply.","Each ",1,null,{"$f":"D1062*E1062","v":0}]
[]
[64,"Install.","Each ",1,null,{"$f":"D1064*E1064","v":0}]
[]
[null,"16 Core Mylar Cable:"]
[]
[65,"Supply.","Each ",10,null,{"$f":"D1068*E1068","v":0}]
[]
[66,"Install.","Each ",10,null,{"$f":"D1070*E1070","v":0}]
[]
[null,"LIGHTNING PROTECTION AND ACCESSORIES"]
[]
[67,"1.5m Earth rods installed to 2.0 depth.","No",18,null,{"$f":"D1074*E1074","v":0}]
[]
[68,"35mm² PVC copper wire as earth tails from earth rods to inspection boxes.","m",36,null,{"$f":"D1076*E1076","v":0}]
[]
[69,"20mm Galvanized conduit incl. 20mm galvanized spacer saddles fixed surface.","m",54,null,{"$f":"D1078*E1078","v":0}]
[]
[70,"J1 York inspection boxes complete with 20mm galvanized male adaptors fixed surface.","No",18,null,{"$f":"D1080*E1080","v":0}]
[]
[71,"35mm² PVC copper wire as down conductor drawn into 20mm galvanized conduit.","m",54,null,{"$f":"D1082*E1082","v":0}]
[]
[72,"Terminations in inspection boxes.","No",18,null,{"$f":"D1084*E1084","v":0}]
[]
[73,"Terminations to metallic roof sheets.","No",18,null,{"$f":"D1086*E1086","v":0}]
[]
[74,"Terminations to metal gutters and RWDP.","No",18,null,{"$f":"D1088*E1088","v":0}]
[]
[75,"Test completed system & issue certificates.","No",3,null,{"$f":"D1090*E1090","v":0}]
[]
[76,"Soil resistivity survey.","SUM",3,null,{"$f":"D1092*E1092","v":0}]
[]
[null,"Total for Section 2: Bill No. 14",{"$nulls":3},{"$f":"SUM(F847:F1093)","v":0}]
[]
[null,"SECTION 3"]
[null,"BILL NO.1 : EXTERNAL WORKS (PROVISIONAL)"]
[]
[null,"The Tenderer is referred to the relevant Clauses in the Standard Preambles to All Trades and to the Supplementary Preambles which are incorporated in these Bills of Quantities."]
[]
[null,"Block Notation "]
[]
[null,"Note: For the purpose of tendering only the total quantity shall be used in calculating the amount for inclusion in the tender at the tendered rates.\nBlock A : Admin Block and Classrooms\nBlock B : Church Hall\nBlock C : 3 Classroom\nBlock X - External Works\nY - General"]
[]
[null,"When Pricing this Section, The Tenderer is referred to the relevant Clauses in the Supplementary Preambles, as stated in previous Sections of these Bills of Quantities."]
[]
[null,"SITE CLEARANCE, ETC."]
[]
[null,"Site clearance, etc.:"]
[]
[1,"Allow for clearing the area of the site to be built upon of all grass, weeds, shrubs, trees with trunks not exceeding 200mm girth, debris, etc., including grubbing up all roots, scuffling up as required and cart away all vegetation and debris.","m2",60,null,{"$f":"D1111*E1111","v":0}]
[]
[null,"WATER TANKS AND SUPPORT"]
[]
[null,"Polyethylene water storage tanks:"]
[]
[2,"2500L low profile circular tank size 1420mm diameter, with access lid and inlet hole, embedded in pedestal to a minimum of 400mm above ground level and tied down with 4No. of 4mm galvanised wired ties tied to 4No. mild steel M8 eye bolt of which is to be drilled and fixed to the 4 corners of concrete supporting base. Water tank to include overflow pipe inclusive of all bends and fixings to be installed.","No",10,null,{"$f":"D1117*E1117","v":0}]
[]
[3,"20mm PVC ball valve tap.","No",10,null,{"$f":"D1119*E1119","v":0}]
[]
[null,"PLINTH"]
[]
[null,"NOTE: Unless otherwise stated herein, all items in this Bill shall be deemed to fall into Work Group No. 104 for Calculation of Contract Price Adjustment on the Haylett Formula. "]
[]
[null,"Excavation in earth not exceeding 2m deep from the reduced level:"]
[]
[4,"Trenches.","m3",40,null,{"$f":"D1127*E1127","v":0}]
[]
[null,"Extra over excavation in earth for excavation in:"]
[]
[5,"Soft rock material.","m3",1,null,{"$f":"D1131*E1131","v":0}]
[]
[6,"Hard rock material.","m3",1,null,{"$f":"D1133*E1133","v":0}]
[]
[null,"Extra over all excavations for carting away:"]
[]
[7,"Surplus material from excavations and/or stock piles on site to a dumping site to be located by the Contractor.","m3",11,null,{"$f":"D1137*E1137","v":0}]
[]
[null,"Risk of collapse of excavation:"]
[]
[8,"Sides of trench and hole excavations not exceeding 1,5m deep.","m2",37,null,{"$f":"D1141*E1141","v":0}]
[]
[null,"Keeping excavation free of water:"]
[]
[9,"Keeping excavation free from mud, water and all other than from subterranean sources.","Item",1,null,{"$f":"D1145*E1145","v":0}]
[]
[null,"Earth filling supplied by the Contractor and brought to site and compacted to 95% Mod AASHTO density:"]
[]
[10,"G7 material under floors.","m3",13,null,{"$f":"D1149*E1149","v":0}]
[]
[null,"50mm  Riversand blinding.","m3",3,null,{"$f":"D1151*E1151","v":0}]
[]
[null,"NOTE: Unless otherwise stated herein, all items in this Bill shall be deemed to fall into Work Group No. 110 for Calculation of Contract Price Adjustments on the Haylett Formula."]
[]
[null,"SOIL POISONING"]
[]
[null,"Approved brand of anti-termite soil poison applied by a Registered Pest Control company and guaranteed against termite infestation for ten years:"]
[]
[11,"To bottom and sides of trenches.","m2",47,null,{"$f":"D1159*E1159","v":0}]
[]
[null,"20MPa/19mm Unreinforced concrete:"]
[]
[12,"Strip footings.","m3",10,null,{"$f":"D1163*E1163","v":0}]
[]
[null,"30MPa/19mm Reinforced concrete:"]
[]
[13,"Surface bed.","m3",6.5,null,{"$f":"D1167*E1167","v":0}]
[]
[null,"Test blocks:"]
[]
[14,"Allow for all necessary concrete test cubes size 150 x 150 x 150mm cast from batches of concrete set of three, made, stored, cured and tested in accordance with SANS 2001-CC1, including use of approved cube moulds, transporting to an approved testing laboratory for testing, paying all charges and submitting reports to the Structural Engineer.","Sets",14,null,{"$f":"D1171*E1171","v":0}]
[]
[null,"NOTE: Unless otherwise stated herein, all items in this Bill shall be deemed to fall into Work Group No. 111 for Calculation of Contract Price Adjustments on the Haylett Formula."]
[]
[null,"Unformed finishes Class U2 - wood float finish:"]
[]
[15,"On surface beds.","m2",65,null,{"$f":"D1177*E1177","v":0}]
[]
[null,"Formwork Class F1 - ordinary finish:"]
[]
[16,"Edges, risers, ends and reveals not exceeding 300mm high or wide.","m",88,null,{"$f":"D1181*E1181","v":0}]
[]
[null,"Slip joints between horizontal concrete and brick surfaces with two layers of 3 ply malthoid:"]
[]
[17,"Not exceeding 300mm wide.","m",88,null,{"$f":"D1185*E1185","v":0}]
[]
[null,"Thioflex 600 poly sulphide sealing compound including backing strip, bond breaker, primer, etc.:"]
[]
[18,"10mm Isolation joints between floors and brickwork including raking out joint filler as necessary.","m",88,null,{"$f":"D1189*E1189","v":0}]
[]
[null,"NOTE: Unless otherwise stated herein, all items in this Bill shall be deemed to fall into Work Group No. 114 for Calculation of Contract Price Adjustments on the Haylett Formula."]
[]
[null,"Fabric Reinforcement:"]
[]
[19,"Type 193 fabric reinforcement in surface beds, rib and block slabs, etc.","m2",65,null,{"$f":"D1195*E1195","v":0}]
[]
[null,"NOTE: Unless otherwise stated herein, all items in this Bill shall be deemed to fall into Work Group No. 116 for Calculation of Contract Price Adjustments on the Haylett Formula."]
[]
[null,"Brickwork of NFX bricks (14 MPa nominal compressive strength) in class II mortar:"]
[]
[20,"One brick walls including wire ties (7 per square metre - laid staggered).","m2",17,null,{"$f":"D1201*E1201","v":0}]
[]
[null,"SUPERSTRUCTURE BRICKWORK"]
[]
[null,"Brickwork of NFP bricks (14 MPa nominal compressive strength) in class II mortar:"]
[]
[21,"One brick walls including wire ties (7 per square metre - laid staggered).","m2",12,null,{"$f":"D1207*E1207","v":0}]
[]
[null,"Corobrik® (Lawley-Gauteng) 20-30 MPa Montana Travertine FSB clay face brick, bedded and jointed in Class II mortar and pointed with flush vertical and flush horizontal joints and perpends, suitable for exposure zones 1-2:"]
[]
[22,"Extra over NFX brickwork for face brickwork in foundations (provisional).","m2",17,null,{"$f":"D1211*E1211","v":0}]
[]
[23,"Extra over NFP brickwork for face brickwork.","m2",12,null,{"$f":"D1213*E1213","v":0}]
[]
[null,"NOTE: Unless otherwise stated herein, all items in this bill shall be deemed to fall into Work Group No. 142 for Haylett formula purposes."]
[]
[null,"Cement screed around tank:"]
[]
[24,"Cement screed around tank average 40mm thick and laid to falls.","m2",23,null,{"$f":"D1219*E1219","v":0}]
[]
[null,"LINED STORM WATER DRAINAGE"]
[]
[null,"30Mpa Reinforced concrete 'V' drains with 19mm aggregate:"]
[]
[25,"V-shaped concrete channel 1m wide and 75mm thick concrete lining with wood float finish on exposed surfaces, laid to falls in panels not exceeding 1.8m in length, with 12mm soft board movement joints including all excavation, cart away, form work and Ref 193 mesh reinforcement as per drawing.","m",145,null,{"$f":"D1225*E1225","v":0}]
[]
[26,"Concrete energy dissipators: 100mm thick concrete with embedded stones.","m",15,null,{"$f":"D1227*E1227","v":0}]
[]
[]
[null,"Total for Section 3: Bill No. 1",{"$nulls":3},{"$f":"SUM(F1111:F1229)","v":0}]
[]
[null,"SUMMARY:"]
[]
[null,"SECTION 1: "]
[null,"BILL NO.1 : PRELIMINARIES (PROVISIONAL)",{"$nulls":3},{"$f":"F15","v":0}]
[]
[null,"SECTION 2:"]
[null,"BILL NO.1 : ALTERATIONS",{"$nulls":3},{"$f":"F176","v":0}]
[]
[null,"BILL NO.2 : EARTHWORKS",{"$nulls":3},{"$f":"F259","v":0}]
[]
[null,"BILL NO.3 : MASONRY",{"$nulls":3},{"$f":"F330","v":0}]
[]
[null,"BILL NO.4 : CONCRETE, FORMWORK AND REINFORCEMENT",{"$nulls":3},{"$f":"F404","v":0}]
[]
[null,"BILL NO.5 : ROOF COVERINGS",{"$nulls":3},{"$f":"F448","v":0}]
[]
[null,"BILL NO.6 : CARPENTRY AND JOINERY",{"$nulls":3},{"$f":"F528","v":0}]
[]
[null,"BILL NO.7 : CEILINGS, PARTITIONS AND ACCESS FLOORING",{"$nulls":3},{"$f":"F554","v":0}]
[]
[null,"BILL NO.8 : IRONMONGERY",{"$nulls":3},{"$f":"F608","v":{"v":130000,"d":"R130,000.00"}}]
[]
[null,"BILL NO.9 : METALWORK ",{"$nulls":3},{"$f":"F670","v":{"v":15000,"d":"R15,000.00"}}]
[]
[null,"BILL NO.10 : PLASTERING",{"$nulls":3},{"$f":"F704","v":0}]
[]
[null,"BILL NO.11 : PLUMBING AND DRAINAGE",{"$nulls":3},{"$f":"F738","v":0}]
[]
[null,"BILL NO.12 : GLAZING",{"$nulls":3},{"$f":"F766","v":0}]
[]
[null,"BILL NO.13 : PAINTWORK",{"$nulls":3},{"$f":"F836","v":0}]
[]
[null,"BILL NO.14 : ELECTRICAL WORK",{"$nulls":3},{"$f":"F1094","v":0}]
[]
[null,"SECTION 3: "]
[null,"BILL NO.1 : EXTERNAL WORKS (PROVISIONAL)",{"$nulls":3},{"$f":"F1230","v":0}]
[]
[]
["TOTAL SECTION NO. 1: PRELIMINARIES AND GENERAL",{"$nulls":4},{"$f":"F1235","v":0}]
[]
["TOTAL SECTION NO. 2: BUILDERS WORK",{"$nulls":4},{"$f":"SUM(F1238:F1264)","v":{"v":145000,"d":"R145,000.00"}}]
[]
["TOTAL SECTION NO. 3: EXTERNAL WORKS",{"$nulls":4},{"$f":"F1267","v":0}]
[]
["SUBTOTAL",{"$nulls":4},{"$f":"SUM(F1270:F1275)","v":{"v":145000,"d":"R145,000.00"}}]
[]
["Value Added Tax (15%)",{"$nulls":4},{"$f":"F1276*0.15","v":{"v":21750,"d":"R21,750.00"}}]
[]
["TOTAL PROJECT COST:  Carried forward to T2.22.",{"$nulls":4},{"$f":"SUM(F1276:F1279)","v":{"v":166750,"d":"R166,750.00"}}]